fUSD/lending_fUSD_20241101
["ID","MTS","AMOUNT","RATE_DAILY","PERIOD"]
[341151353,1730476244043,-500.0,0.00044749,3]
[341151354,1730476244052,-500.0,0.00044749,3]
[341151355,1730476244061,-563.46,0.00044749,3]
[341151356,1730476244071,-500.0,0.00044749,3]
[341151357,1730476244081,-503.5,0.00044749,3]
[341151358,1730476244090,-382.1464391,0.00044749,3]
[341151359,1730476244099,-542.53,0.00044749,3]
[341151360,1730476244109,-500.0,0.00044749,3]
[341151361,1730476244118,-500.0,0.00044749,3]
[341151362,1730476244130,-500.0,0.00044749,3]
[341151363,1730476244140,-500.0,0.00044749,3]
[341151364,1730476244150,-653.42,0.00044749,3]
[341151365,1730476244160,-500.0,0.00044749,3]
[341151366,1730476244170,-837.96,0.00044749,3]
[341151367,1730476244179,-500.0,0.00044749,3]
[341151368,1730476244189,-500.0,0.00044749,3]
[341151369,1730476244198,-500.0,0.00044749,3]
[341151370,1730476244208,-500.0,0.00044749,3]
[341151371,1730476244217,-378.81059022,0.00044749,3]
[341151372,1730476244228,-500.0,0.00044749,3]
[341151373,1730476244237,-500.0,0.00044749,3]
[341151374,1730476244247,-500.0,0.00044749,3]
[341151375,1730476244256,-663.46,0.00044749,3]
[341151376,1730476244266,-500.0,0.00044749,3]
[341151377,1730476244275,-500.0,0.00044749,3]
[341151378,1730476244285,-500.0,0.00044749,3]
[341151379,1730476244294,-500.0,0.00044749,3]
[341151380,1730476244303,-635.18,0.00044749,3]
[341151381,1730476244313,-500.0,0.00044749,3]
[341151382,1730476244322,-500.0,0.00044749,3]
[341151383,1730476244332,-398.82846452,0.00044749,3]
[341151384,1730476244352,-1500.0,0.0004458,7]
[341151385,1730476244362,-101.17153548,0.00044749,3]
[341151386,1730476244373,-500.0,0.00044749,3]
[341151387,1730476244383,-500.0,0.00044749,3]
[341151388,1730476244392,-116.52305751,0.00044758,2]
[341151389,1730476244423,-500.0,0.00041095,3]
[341151390,1730476244434,-151.0,0.00043653,14]
[341151391,1730476244443,-150.0,0.00044702,2]
[341151392,1730476244453,-1140.93887592,0.00044758,2]
[341151393,1730476244462,-151.0,0.00044758,14]
[341151394,1730476244472,-151.0,0.00044758,14]
[341151395,1730476244481,-151.0,0.00044758,14]
[341151396,1730476244490,-151.0,0.00044758,14]
[341151397,1730476244502,-151.0,0.00044758,14]
[341151398,1730476244511,-151.0,0.00044758,14]
[341151399,1730476244520,-500.0,0.00044759,2]
[341151400,1730476244530,-152.94892408,0.00044759,3]
[341151401,1730476244542,-347.05107592,0.00044759,3]
[341151402,1730476244551,-500.0,0.00044759,3]
[341151403,1730476244560,-1194.95,0.00044759,120]
[341151404,1730476244570,-1000.0,0.0004476,13]
[341151405,1730476244579,-754.0,0.0004476,13]
[341151406,1730476244589,-200.0,0.0004476,7]
[341151407,1730476244599,-492.0,0.0004476,30]
[341151408,1730476244609,-492.0,0.0004476,30]
[341151409,1730476244618,-492.0,0.0004476,30]
[341151410,1730476244631,-492.0,0.0004476,30]
[341151411,1730476244641,-492.0,0.0004476,30]
[341151412,1730476244650,-492.0,0.0004476,30]
[341151413,1730476244659,-492.0,0.0004476,30]
[341151414,1730476244669,-492.0,0.0004476,30]
[341151415,1730476244680,-492.0,0.0004476,30]
[341151416,1730476244689,-492.0,0.0004476,30]
[341151417,1730476244699,-492.0,0.0004476,30]
[341151418,1730476244709,-492.0,0.0004476,30]
[341151419,1730476244719,-492.0,0.0004476,30]
[341151420,1730476244728,-492.0,0.0004476,30]
[341151421,1730476244738,-492.0,0.0004476,30]
[341151422,1730476244748,-492.0,0.0004476,30]
[341151423,1730476244758,-492.0,0.0004476,30]
[341151424,1730476244768,-492.0,0.0004476,30]
[341151425,1730476244777,-492.0,0.0004476,30]
[341151426,1730476244787,-492.0,0.0004476,30]
[341151427,1730476244795,-492.0,0.0004476,30]
[341151428,1730476244805,-492.0,0.0004476,30]
[341151429,1730476244814,-492.0,0.0004476,30]
[341151430,1730476244823,-507.95758443,0.0004476,30]
[341151431,1730476244832,-150.0,0.0004476,30]
[341151432,1730476244841,-287.84527472,0.0004476,30]
[341151433,1730476244850,-500.0,0.0004476,30]
[341151434,1730476244859,-500.0,0.0004476,30]
[341151435,1730476244868,-500.0,0.0004476,30]
[341151436,1730476244882,-500.0,0.0004476,30]
[341151437,1730476244891,-500.0,0.0004476,30]
[341151438,1730476244901,-500.0,0.0004476,30]
[341151439,1730476244911,-500.0,0.0004476,30]
[341151440,1730476244920,-500.0,0.0004476,30]
[341151441,1730476244929,-950.94054984,0.0004476,30]
[341151442,1730476244938,-426.15752818,0.00044763,2]
[341151443,1730476244947,-2128.6365583,0.00044769,2]
[341151444,1730476244956,-1514.6764784,0.00044769,2]
[341151445,1730476244965,-151.0,0.00044773,7]
[341151446,1730476244974,-151.0,0.00044773,7]
[341151447,1730476244983,-456.445455,0.00044773,14]
[341151448,1730476244993,-456.445455,0.00044773,14]
[341151449,1730476245002,-456.445455,0.00044773,14]
[341151450,1730476245012,-456.445455,0.00044773,14]
[341151451,1730476245023,-456.445455,0.00044773,14]
[341151452,1730476245034,-456.445455,0.00044773,14]
[341151453,1730476245044,-458.726091,0.00044773,14]
[341151454,1730476245055,-458.726091,0.00044773,14]
[341151455,1730476245066,-458.726091,0.00044773,14]
[341151456,1730476245076,-458.726091,0.00044773,14]
[341151457,1730476245087,-458.726091,0.00044773,14]
[341151458,1730476245098,-458.726091,0.00044773,14]
[341151459,1730476245108,-151.0,0.00044773,14]
[341151460,1730476245118,-151.0,0.00044773,14]
[341151461,1730476245133,-151.0,0.00044773,14]
[341151462,1730476245143,-290.657108,0.00044773,14]
[341151463,1730476245153,-151.0,0.00044773,14]
[341151464,1730476245163,-151.0,0.00044773,14]
[341151465,1730476245172,-151.0,0.00044773,14]
[341151466,1730476245182,-7994.45501238,0.00044773,2]
[341151467,1730476245194,-9389.99999865,0.00044773,2]
[341151468,1730476245211,-150.0,0.00044575,2]
[341151469,1730476245220,-197.852505,0.00044773,2]
[341151470,1730476245271,-151.0,0.00043653,14]
[341151471,1730476245280,-206.511772,0.00044383,14]
[341151472,1730476245290,-150.0,0.00044678,7]
[341151473,1730476245299,-150.0,0.00044683,7]
[341151474,1730476245309,-122.73693732,0.000447,45]
[341151475,1730476245321,-377.26306268,0.000447,45]
[341151476,1730476245330,-300.0,0.00044711,2]
[341151477,1730476245340,-1666.17606499,0.00044773,2]
[341151478,1730476245350,-31641.96048942,0.00044773,2]
[341151479,1730476245363,-90048.72777946,0.00044773,2]
[341151487,1730476245977,-500.0,0.00041095,3]
[341151488,1730476245987,-500.0,0.00041095,3]
[341151489,1730476245997,-248.7,0.00042088,2]
[341151490,1730476246007,-157.038653,0.00043653,14]
[341151491,1730476246017,-737.66,0.0004459,30]
[341151492,1730476246027,-123541.82624,0.00044773,2]
[341151493,1730476246110,-691.42902361,0.00044773,2]
[341151494,1730476246123,-70560.00000001,0.00044773,2]
[341151495,1730476246137,-9405.14332458,0.00044773,2]
[341151496,1730476246148,-3327.88987041,0.00044773,2]
[341151497,1730476246170,-456.71737407,0.00044773,2]
[341151498,1730476246182,-7529.10000015,0.00044773,2]
[341151499,1730476246193,-6993.3,0.00044773,2]
[341151500,1730476246204,-1735.0,0.00044773,2]
[341151501,1730476246216,-35070.99999996,0.00044773,2]
[341151502,1730476246229,-954.37894803,0.00044773,2]
[341151503,1730476246274,-705.8,0.00044773,2]
[341151855,1730476343834,187.24,0.00034094,2]
[341151856,1730476346210,1286.99175,0.0003,2]
[341151857,1730476347621,533.19692702,0.0003145,30]
[341151858,1730476347959,180.51925,0.00028898,2]
[341151859,1730476350072,158.18,0.00015342,2]
[341151863,1730476513121,177.29,0.00019178,2]
[341151864,1730476561626,-1670.21070665,0.00025417,2]
[341151886,1730476694478,-408876.84928294,0.00044772,30]
[341151887,1730476694506,-412.81587867,0.00044772,30]
[341151888,1730476694557,-1500.0,0.00044772,120]
[341151889,1730476694603,-939.0,0.00044772,30]
[341151890,1730476694650,-939.0,0.00044772,30]
[341151891,1730476694689,-3000.0,0.00044772,36]
[341151892,1730476694713,-499049.90345587,0.00044772,30]
[341151900,1730476983201,158.18,0.00015342,2]
[341151902,1730477245145,-265.971,0.0003,2]
[341151903,1730477245165,-192.894,0.00030413,2]
[341151904,1730477245185,-150.0,0.00031,120]
[341151905,1730477245205,-187.24,0.00031339,2]
[341151906,1730477245225,-3917.860524,0.00034476,2]
[341151907,1730477245245,-2184.01528089,0.0003465,2]
[341151908,1730477249184,-5170.03462808,0.0003465,2]
[341151909,1730477351131,-1998.6210764,0.00024541,2]
[341151910,1730477351151,-151.0,0.0003,120]
[341151911,1730477351172,-1545.73762461,0.00033216,2]
[341151912,1730477352113,-6441.52,0.00034725,10]
[341151913,1730477352137,-1010.51210735,0.000349,2]
[341151914,1730477352156,-5523.13240154,0.000349,2]
[341151915,1730477352177,-528.0,0.00034999,2]
[341151916,1730477352201,-150.0,0.00035,120]
[341151917,1730477352221,-258.24,0.00035,2]
[341151918,1730477352240,-4595.77,0.00035,2]
[341151919,1730477352261,-9999.99,0.00035,2]
[341151920,1730477352280,-822.43,0.00035,2]
[341151921,1730477370104,-999.99,0.0003669,2]
[341151945,1730477432005,-700.0,0.00037185,2]
[341151949,1730477432018,-470.14,0.00037185,2]
[341151951,1730477432029,-265.971,0.00037191,2]
[341151952,1730477432038,-283.44618188,0.00037262,2]
[341151953,1730477432050,-658.00793058,0.00037262,2]
[341151954,1730477432209,-345.53763754,0.00037262,2]
[341151955,1730477432219,-180.51925,0.00037262,2]
[341151956,1730477432232,-160.89,0.00037667,2]
[341151957,1730477432241,-151.8,0.00038196,2]
[341151958,1730477432252,-160.89,0.00038272,2]
[341151959,1730477432263,-927.63,0.00038385,2]
[341151960,1730477432272,-150.99,0.00038385,2]
[341151961,1730477432281,-204.88,0.00038385,2]
[341151962,1730477432290,-1282.15,0.00038385,2]
[341151963,1730477432300,-3622.66,0.00038385,2]
[341151964,1730477432310,-3778.78,0.00038385,2]
[341151965,1730477432319,-200.0,0.00038421,2]
[341151966,1730477432328,-200.0,0.00038447,2]
[341151967,1730477432340,-9115.52657794,0.00038479,2]
[341151968,1730477432350,-23900.0,0.0003851,2]
[341151969,1730477432359,-250.0,0.00038577,120]
[341151970,1730477432370,-2131.48,0.00038651,2]
[341151971,1730477432380,-250.0,0.00038669,2]
[341151972,1730477432390,-501.06925006,0.000387,5]
[341151973,1730477432400,-162.91,0.00038762,2]
[341151974,1730477432410,-164.61,0.0003877,120]
[341151975,1730477432419,-1287.66582894,0.00038822,2]
[341151976,1730477432429,-6209.26,0.00038831,63]
[341151978,1730477432438,-2751.0,0.00038843,120]
[341151979,1730477432447,-170.094,0.00038843,2]
[341151980,1730477432456,-170.094,0.00038843,2]
[341151981,1730477432466,-160.89,0.00038878,2]
[341151982,1730477432476,-150.0,0.00038918,7]
[341151983,1730477432486,-2233.00176537,0.00038937,2]
[341151984,1730477432501,-971.67541498,0.00038937,2]
[341151985,1730477432517,-785.30281965,0.00038937,2]
[341151986,1730477432528,-150.0,0.00038937,2]
[341151987,1730477432537,-500.0,0.00038983,2]
[341151988,1730477432547,-295.21,0.00038984,10]
[341151989,1730477432556,-571.26824647,0.00038994,2]
[341151990,1730477432567,-597.6186,0.00038994,2]
[341151991,1730477432608,-6236.66397548,0.00038994,2]
[341151992,1730477432621,-3681.16769562,0.00038994,2]
[341151993,1730477432632,-17322.73979464,0.00038994,2]
[341151994,1730477432644,-6226.10168779,0.00038994,2]
[341151995,1730477432653,-488.87,0.00038995,2]
[341151996,1730477432663,-2714.89,0.00038998,2]
[341151997,1730477432672,-600.0,0.00039013,2]
[341151998,1730477432681,-165.52,0.00039031,120]
[341151999,1730477432690,-250.0,0.00039105,2]
[341152000,1730477432699,-173.35116725,0.00039172,54]
[341152001,1730477432709,-438.902,0.00039172,54]
[341152002,1730477432718,-9999.99,0.00039369,2]
[341152003,1730477432727,-480.0,0.000394,2]
[341152004,1730477432737,-1170.14,0.00039449,2]
[341152005,1730477432747,-160.89,0.00039483,2]
[341152006,1730477432760,-150.8,0.00039498,120]
[341152007,1730477432769,-1250.0,0.00039548,2]
[341152008,1730477432778,-1250.0,0.00039569,2]
[341152009,1730477432787,-152.0,0.00039622,3]
[341152010,1730477432796,-731.7826,0.00039624,2]
[341152011,1730477432805,-3615.2088,0.00039624,2]
[341152012,1730477432815,-151.8,0.00039703,2]
[341152013,1730477432824,-500.0,0.000398,2]
[341152014,1730477432833,-948.5327,0.00039888,7]
[341152015,1730477432842,-235.76,0.0004006,2]
[341152016,1730477432852,-160.89,0.00040088,2]
[341152017,1730477432862,-153.0,0.00040424,2]
[341152018,1730477432872,-153.0,0.00040424,2]
[341152019,1730477432882,-153.0,0.00040424,2]
[341152020,1730477432891,-153.0,0.00040424,2]
[341152021,1730477432912,-153.0,0.00040424,2]
[341152022,1730477432921,-153.0,0.00040424,2]
[341152023,1730477432930,-153.0,0.00040424,2]
[341152024,1730477432940,-153.0,0.00040424,2]
[341152025,1730477432951,-153.0,0.00040424,2]
[341152026,1730477432961,-153.0,0.00040424,2]
[341152027,1730477432970,-153.0,0.00040424,2]
[341152028,1730477432979,-153.0,0.00040424,2]
[341152029,1730477432988,-153.0,0.00040424,2]
[341152030,1730477432998,-153.0,0.00040424,2]
[341152031,1730477433010,-153.0,0.00040424,2]
[341152032,1730477433019,-153.0,0.00040424,2]
[341152033,1730477433030,-153.0,0.00040424,2]
[341152034,1730477433040,-153.0,0.00040424,2]
[341152035,1730477433050,-153.0,0.00040424,2]
[341152036,1730477433060,-153.0,0.00040424,2]
[341152037,1730477433070,-153.0,0.00040424,2]
[341152038,1730477433079,-153.0,0.00040424,2]
[341152039,1730477433089,-153.0,0.00040424,2]
[341152040,1730477433099,-153.0,0.00040424,2]
[341152041,1730477433108,-153.0,0.00040424,2]
[341152042,1730477433118,-153.0,0.00040424,2]
[341152043,1730477433127,-1524.7566,0.0004048,2]
[341152044,1730477433139,-425.1,0.00040549,10]
[341152045,1730477433148,-354.25,0.00040549,10]
[341152046,1730477433158,-2741.46434907,0.00040559,15]
[341152047,1730477433167,-180.79,0.00040659,120]
[341152048,1730477433177,-160.89,0.00040693,2]
[341152049,1730477433186,-1905.0082,0.00040852,2]
[341152050,1730477433195,-500.0,0.00041095,3]
[341152051,1730477433204,-500.0,0.00041095,3]
[341152052,1730477433214,-500.0,0.00041095,3]
[341152053,1730477433223,-500.0,0.00041095,3]
[341152054,1730477433233,-500.0,0.00041095,3]
[341152055,1730477433242,-500.0,0.00041095,3]
[341152056,1730477433251,-418.75908819,0.00041095,3]
[341152057,1730477433263,-500.0,0.00041095,3]
[341152058,1730477433272,-500.0,0.0004117,2]
[341152059,1730477433281,-2074.49,0.0004117,2]
[341152060,1730477433291,-151.8,0.00041211,120]
[341152061,1730477433300,-171.26,0.00041214,2]
[341152062,1730477433310,-289.33,0.00041238,2]
[341152063,1730477433319,-153.0,0.00041246,31]
[341152064,1730477433328,-153.0,0.00041246,31]
[341152065,1730477433338,-153.0,0.00041246,31]
[341152066,1730477433348,-153.0,0.00041246,31]
[341152067,1730477433357,-153.0,0.00041246,31]
[341152068,1730477433367,-153.0,0.00041246,31]
[341152069,1730477433376,-153.0,0.00041246,31]
[341152070,1730477433385,-153.0,0.00041246,31]
[341152071,1730477433394,-153.0,0.00041246,31]
[341152072,1730477433403,-153.0,0.00041246,31]
[341152073,1730477433413,-153.0,0.00041246,31]
[341152074,1730477433421,-160.89,0.00041299,2]
[341152075,1730477433431,-486.0334,0.00041355,2]
[341152076,1730477433440,-500.0,0.00041369,3]
[341152077,1730477433450,-500.0,0.00041369,3]
[341152078,1730477433459,-500.0,0.00041369,3]
[341152079,1730477433468,-500.0,0.00041369,3]
[341152080,1730477433478,-620.94,0.00041369,3]
[341152081,1730477433488,-500.0,0.00041369,3]
[341152082,1730477433497,-165.36,0.0004141,2]
[341152083,1730477433510,-200.0,0.00041469,2]
[341152084,1730477433519,-2500.0,0.00041543,2]
[341152085,1730477433528,-612.21251922,0.00041643,3]
[341152086,1730477433537,-500.0,0.00041643,3]
[341152087,1730477433546,-500.0,0.00041643,3]
[341152088,1730477433556,-500.0,0.00041643,3]
[341152089,1730477433566,-5909.0,0.00041685,2]
[341152090,1730477433575,-3477.93890024,0.00041685,2]
[341152091,1730477433693,-1402.07309976,0.00041685,2]
[341152092,1730477433703,-150.0,0.00041685,2]
[341152093,1730477433712,-1062.634,0.00041685,2]
[341152094,1730477433722,-1000.0,0.00041703,2]
[341152095,1730477433731,-1170.14,0.00041713,2]
[341152096,1730477433741,-160.89,0.00041904,2]
[341152097,1730477433750,-500.0,0.00041917,3]
[341152098,1730477433765,-500.0,0.00041917,3]
[341152099,1730477433776,-500.0,0.00041917,3]
[341152100,1730477433785,-500.0,0.00041932,3]
[341152101,1730477433795,-503.5,0.00041932,3]
[341152102,1730477433804,-500.0,0.00041932,3]
[341152103,1730477433814,-500.0,0.00041932,3]
[341152104,1730477433823,-500.0,0.00041932,3]
[341152105,1730477433833,-500.0,0.00041932,3]
[341152106,1730477433843,-500.0,0.00041932,3]
[341152107,1730477433852,-500.0,0.00041932,3]
[341152108,1730477433861,-500.0,0.00041932,3]
[341152109,1730477433871,-500.0,0.00041932,3]
[341152110,1730477433879,-5964.28359499,0.00041933,30]
[341152123,1730477437940,-615.14,0.00041932,3]
[341152124,1730477437953,-168.4440292,0.00041933,30]
[341152125,1730477437964,-1301.15361802,0.00041933,30]
[341152126,1730477437975,-749.86877271,0.00041933,30]
[341152127,1730477437986,-6329.97878758,0.00041933,30]
[341152128,1730477438002,-1084.4175613,0.00041933,30]
[341152129,1730477438015,-3151.88708974,0.00041933,30]
[341152130,1730477438027,-1743.66113836,0.00041933,30]
[341152131,1730477438105,-11742.83664634,0.00041933,30]
[341152132,1730477438116,-5645.29615168,0.00041933,30]
[341152133,1730477438127,-15622.07117432,0.00041933,30]
[341152134,1730477438138,-2238.99168339,0.00041933,30]
[341152135,1730477438158,-347.825,0.00041933,30]
[341152136,1730477438169,-792.98054725,0.00041933,30]
[341152141,1730477438735,-766.44231147,0.00041933,30]
[341152142,1730477438750,-3735.142385,0.00041933,30]
[341152143,1730477438763,-253.34417042,0.00041933,30]
[341152144,1730477438774,-1353.58223,0.00041933,30]
[341152145,1730477438793,-500.0,0.00041933,30]
[341152147,1730477440070,-500.0,0.00041932,3]
[341152148,1730477440079,-2981.79310823,0.00041933,30]
[341152149,1730477440089,-741.29,0.00042087,3]
[341152150,1730477440099,-500.0,0.00042087,3]
[341152151,1730477440110,-251.88689179,0.00042087,3]
[341152152,1730477440121,-248.11310821,0.00042087,3]
[341152153,1730477440131,-500.0,0.00042087,3]
[341152154,1730477440142,-233.187446,0.00042088,3]
[341152155,1730477440152,-500.0,0.00042088,3]
[341152156,1730477440162,-500.0,0.00042088,3]
[341152157,1730477440170,-500.0,0.00042088,3]
[341152158,1730477440180,-500.0,0.00042088,3]
[341152159,1730477440190,-500.0,0.00042088,3]
[341152160,1730477440199,-500.0,0.00042088,3]
[341152161,1730477440208,-500.0,0.00042088,3]
[341152162,1730477440217,-500.0,0.00042088,3]
[341152163,1730477440227,-500.0,0.00042088,3]
[341152164,1730477440236,-500.0,0.00042088,3]
[341152165,1730477440245,-500.0,0.00042088,3]
[341152166,1730477440255,-500.0,0.00042088,3]
[341152167,1730477440266,-500.0,0.00042088,3]
[341152168,1730477440275,-500.0,0.00042088,3]
[341152169,1730477440284,-500.0,0.00042088,3]
[341152170,1730477440293,-500.0,0.00042088,3]
[341152171,1730477440302,-500.0,0.00042088,3]
[341152172,1730477440311,-500.0,0.00042088,3]
[341152173,1730477440320,-500.0,0.00042088,3]
[341152174,1730477440329,-500.0,0.00042088,3]
[341152175,1730477440338,-631.15,0.00042088,3]
[341152176,1730477440347,-500.0,0.00042088,3]
[341152177,1730477440356,-500.0,0.00042088,3]
[341152178,1730477440366,-500.0,0.00042088,3]
[341152179,1730477440375,-714.63,0.00042088,3]
[341152180,1730477440384,-151.124,0.00042089,2]
[341152181,1730477440396,-451.0,0.00042089,2]
[341152183,1730477440407,-557.0,0.00042089,2]
[341152185,1730477440415,-587.971,0.00042089,2]
[341152186,1730477440425,-3312.247,0.00042089,2]
[341152187,1730477440434,-812.0,0.00042089,2]
[341152188,1730477440444,-808.0,0.00042089,2]
[341152190,1730477440455,-253.57744579,0.0004219,3]
[341152191,1730477440469,-246.42255421,0.0004219,3]
[341152192,1730477440481,-500.0,0.0004219,3]
[341152193,1730477440490,-500.0,0.0004219,3]
[341152194,1730477440499,-500.0,0.0004219,3]
[341152195,1730477440510,-500.0,0.00042191,3]
[341152196,1730477440519,-500.0,0.00042191,3]
[341152197,1730477440528,-500.0,0.00042191,3]
[341152198,1730477440537,-503.5,0.00042206,3]
[341152199,1730477440546,-306.01682529,0.00042206,3]
[341152200,1730477440556,-639.77,0.00042206,3]
[341152201,1730477440565,-420.64,0.00042206,3]
[341152202,1730477440574,-169.37,0.00042255,2]
[341152203,1730477440583,-741.29,0.00042361,3]
[341152204,1730477440592,-500.0,0.00042361,3]
[341152205,1730477440601,-500.0,0.00042362,3]
[341152206,1730477440610,-500.0,0.00042362,3]
[341152207,1730477440623,-500.0,0.00042362,3]
[341152208,1730477440633,-500.0,0.00042362,3]
[341152209,1730477440645,-500.0,0.00042362,3]
[341152210,1730477440655,-500.0,0.00042362,3]
[341152211,1730477440666,-500.0,0.00042362,3]
[341152212,1730477440676,-500.0,0.00042362,3]
[341152213,1730477440685,-500.0,0.00042362,3]
[341152214,1730477440695,-208.18,0.00042362,3]
[341152215,1730477440704,-500.0,0.00042362,3]
[341152216,1730477440715,-500.0,0.00042464,3]
[341152217,1730477440725,-500.0,0.00042464,3]
[341152218,1730477440735,-500.0,0.00042465,3]
[341152219,1730477440745,-500.0,0.00042465,3]
[341152220,1730477440755,-628.49979593,0.00042465,3]
[341152221,1730477440766,-503.5,0.0004248,3]
[341152222,1730477440775,-246.419,0.0004253,2]
[341152223,1730477440784,-2741.46434903,0.00042544,15]
[341152224,1730477440793,-741.29,0.00042635,3]
[341152225,1730477440803,-500.0,0.00042635,3]
[341152226,1730477440812,-500.0,0.00042636,3]
[341152227,1730477440823,-500.0,0.00042636,3]
[341152228,1730477440832,-330.15612414,0.00042636,3]
[341152229,1730477440842,-500.0,0.00042636,3]
[341152230,1730477440851,-500.0,0.00042636,3]
[341152231,1730477440860,-500.0,0.00042636,3]
[341152232,1730477440870,-533.61317346,0.00042636,3]
[341152233,1730477440879,-500.0,0.00042636,3]
[341152234,1730477440889,-500.0,0.00042636,3]
[341152235,1730477440899,-595.19279559,0.00042636,3]
[341152236,1730477440910,-152.0,0.00042697,4]
[341152237,1730477440920,-400.0,0.00042712,2]
[341152238,1730477440930,-151.8,0.00042719,120]
[341152239,1730477440941,-150.0,0.00042728,120]
[341152240,1730477440954,-500.0,0.00042738,3]
[341152241,1730477440964,-500.0,0.00042738,3]
[341152242,1730477440973,-500.0,0.00042739,3]
[341152243,1730477440983,-500.0,0.00042739,3]
[341152244,1730477440994,-503.5,0.00042754,3]
[341152245,1730477441004,-156.64,0.00042848,2]
[341152246,1730477441022,-246.01,0.000429,10]
[341152247,1730477441032,-741.29,0.00042909,3]
[341152248,1730477441041,-500.0,0.00042909,3]
[341152249,1730477441050,-500.0,0.0004291,3]
[341152250,1730477441059,-500.0,0.0004291,3]
[341152251,1730477441069,-500.0,0.0004291,3]
[341152252,1730477441078,-500.0,0.0004291,3]
[341152253,1730477441087,-500.0,0.0004291,3]
[341152254,1730477441096,-500.0,0.0004291,3]
[341152255,1730477441105,-500.0,0.0004291,3]
[341152256,1730477441114,-156.64,0.00042955,2]
[341152257,1730477441123,-431.93628176,0.00043012,3]
[341152258,1730477441133,-500.0,0.00043012,3]
[341152259,1730477441142,-500.0,0.00043013,3]
[341152260,1730477441151,-500.0,0.00043013,3]
[341152261,1730477441160,-503.5,0.00043028,3]
[341152262,1730477441169,-156.64,0.00043062,2]
[341152263,1730477441178,-156.64,0.00043169,2]
[341152264,1730477441187,-741.29,0.00043183,3]
[341152265,1730477441197,-500.0,0.00043183,3]
[341152266,1730477441207,-500.0,0.00043184,3]
[341152267,1730477441217,-500.0,0.00043184,3]
[341152268,1730477441226,-500.0,0.00043184,3]
[341152269,1730477441235,-500.0,0.00043184,3]
[341152270,1730477441245,-500.0,0.00043184,3]
[341152271,1730477441254,-500.0,0.00043184,3]
[341152272,1730477441271,-500.0,0.00043184,3]
[341152273,1730477441281,-169.31028554,0.00043186,28]
[341152274,1730477441291,-246.382,0.0004321,2]
[341152275,1730477441300,-502.26114535,0.00043273,5]
[341152276,1730477441310,-156.64,0.00043276,2]
[341152277,1730477441319,-500.0,0.00043286,3]
[341152278,1730477441328,-296.67951999,0.00043286,3]
[341152279,1730477441337,-512.73719799,0.00043286,3]
[341152280,1730477441347,-528.36936659,0.00043286,3]
[341152281,1730477441356,-500.0,0.00043286,3]
[341152282,1730477441366,-500.0,0.00043286,3]
[341152283,1730477441375,-478.23698424,0.00043286,3]
[341152284,1730477441384,-500.0,0.00043286,3]
[341152285,1730477441394,-500.0,0.00043286,3]
[341152286,1730477441403,-500.0,0.00043286,3]
[341152287,1730477441412,-500.0,0.00043286,3]
[341152288,1730477441421,-500.0,0.00043286,3]
[341152289,1730477441430,-500.0,0.00043286,3]
[341152290,1730477441440,-500.0,0.00043286,2]